bitfinex-derivatives/quotes_SOLF0:USTF0_20241101
["timestamp","ask_amount","ask_price","bid_price","bid_amount"]
[1730475246390,22.68403789,169.0,168.94,2.9602]
[1730475246589,22.68403789,169.03,168.93,5.5]
[1730475247086,2.9597,168.98,168.95,2.9601]
[1730475247282,22.68403789,169.0,168.88,2.6221]
[1730475247483,22.68403789,169.0,168.89,5.5]
[1730475247687,2.9608,168.92,168.89,5.5]
[1730475247893,22.68403789,169.0,168.89,5.5]
[1730475248390,22.68403789,169.0,168.9,2.9609]
[1730475248691,22.68403789,168.95,168.84,5.5]
[1730475248882,22.68403789,168.95,168.8,2.6356]
[1730475249189,22.68403789,168.92,168.81,6.58867712]
[1730475249393,2.9616,168.87,168.83,2.9621]
[1730475249587,2.9616,168.87,168.81,5.5]
[1730475249786,22.68403789,168.92,168.81,5.5]
[1730475249986,22.68403789,168.92,168.83,2.9622]
[1730475250482,22.68403789,168.92,168.81,5.5]
[1730475250882,2.962,168.85,168.81,8.4625]
[1730475251087,22.68403789,168.89,168.75,1.2782]
[1730475251283,22.68403789,168.89,168.76,6.58897328]
[1730475251493,22.68403789,168.89,168.76,5.5]
[1730475251882,2.9623,168.83,168.77,2.9633]
[1730475252079,22.68403789,168.86,168.77,5.5]
[1730475252484,2.9624,168.83,168.78,2.963]
[1730475252700,2.9624,168.83,168.77,5.5]
[1730475253089,2.9625,168.82,168.77,5.5]
[1730475253396,22.68403789,168.86,168.77,5.5]
[1730475253798,2.9624,168.83,168.78,2.963]
[1730475254287,22.68403789,168.86,168.78,2.963]
[1730475254288,2.9625,168.82,168.78,2.963]
[1730475254687,22.68403789,168.86,168.78,2.963]
[1730475254894,22.68403789,168.86,168.77,5.5]
[1730475255305,22.68403789,168.86,168.81,2.9625]
[1730475255598,22.68403789,168.89,168.77,5.5]
[1730475255805,22.68403789,168.86,168.78,2.9631]
[1730475256091,22.68403789,168.89,168.77,5.5]
[1730475256594,2.9619,168.86,168.82,2.9623]
[1730475256785,2.9619,168.86,168.77,5.5]
[1730475257182,22.68403789,168.92,168.78,22.68403789]
[1730475257394,22.68403789,168.91,168.77,28.18403789]
[1730475257695,2.9617,168.86,168.83,2.9622]
[1730475258092,22.68403789,168.91,168.77,28.18403789]
[1730475258400,2.9616,168.87,168.82,2.9623]
[1730475258589,2.9616,168.87,168.77,28.18403789]
[1730475258786,22.68403789,168.97,168.83,22.68403789]
[1730475258981,2.9606,168.93,168.87,2.9614]
[1730475259183,2.9606,168.93,168.84,9.4044]
[1730475259394,22.68403789,168.97,168.84,9.4044]
[1730475259595,2.9609,168.91,168.86,2.9617]
[1730475259788,22.68403789,168.95,168.84,9.4044]
[1730475259993,2.961,168.9,168.84,2.962]
[1730475260289,22.68403789,168.92,168.77,22.68403789]
[1730475260496,22.68403789,168.92,168.83,2.9621]
[1730475260497,2.9614,168.88,168.83,2.9621]
[1730475260793,2.9614,168.88,168.78,5.44]
[1730475261786,2.9619,168.86,168.82,2.9623]
[1730475261988,2.9619,168.86,168.78,5.44]
[1730475261989,22.68403789,168.89,168.78,5.44]
[1730475262394,2.962,168.85,168.8,2.9626]
[1730475262790,2.962,168.85,168.78,5.44]
[1730475262791,2.9619,168.85,168.78,2.963]
[1730475262989,22.68403789,168.86,168.78,2.963]
[1730475263299,2.9634,168.77,168.75,2.6697]
[1730475263486,22.68403789,168.83,168.71,22.68403789]
[1730475263487,22.68403789,168.83,168.71,5.44]
[1730475263887,2.9633,168.77,168.72,2.964]
[1730475264088,22.68403789,168.83,168.71,5.44]
[1730475264288,22.68403789,168.83,168.71,28.12403789]
[1730475264587,22.68403789,168.86,168.71,28.12403789]
[1730475265092,2.9622,168.84,168.71,28.12403789]
[1730475265600,2.9622,168.84,168.78,2.963]
[1730475266099,2.9617,168.87,168.78,2.963]
[1730475266397,22.68403789,168.89,168.78,5.44]
[1730475266586,22.68403789,168.89,168.75,5.44]
[1730475266786,22.68403789,168.89,168.78,2.963]
[1730475267505,2.9623,168.83,168.79,2.9629]
[1730475268000,2.9623,168.83,168.75,5.44]
[1730475268503,5.44,168.92,168.75,5.44]
[1730475268504,22.68403789,168.89,168.75,5.44]
[1730475269103,22.68403789,168.89,168.82,2.9623]
[1730475269397,2.9618,168.86,168.82,2.9623]
[1730475270195,2.9618,168.86,168.83,2.9622]
[1730475270792,2.9616,168.87,168.84,2.962]
[1730475271410,2.9618,168.86,168.83,2.9622]
[1730475271902,2.9613,168.89,168.86,2.9617]
[1730475272097,22.68403789,168.95,168.79,22.68403789]
[1730475272407,2.9607,168.93,168.82,22.68403789]
[1730475272617,22.68403789,168.97,168.83,3.01736974]
[1730475272903,22.68403789,168.97,168.85,22.68403789]
[1730475273297,2.9603,168.95,168.88,2.9613]
[1730475273509,22.68403789,168.97,168.82,22.68403789]
[1730475274008,2.9614,168.88,168.84,2.9619]
[1730475274205,2.9614,168.88,168.8,32.06773789]
[1730475274409,2.9612,168.89,168.85,2.9618]
[1730475274910,2.9612,168.89,168.8,32.06773789]
[1730475275111,2.9612,168.89,168.86,2.9617]
[1730475275808,2.9612,168.89,168.85,2.9618]
[1730475276002,22.68403789,168.92,168.8,32.06773789]
[1730475276209,22.68403789,168.92,168.83,2.9621]
[1730475276404,2.9611,168.9,168.83,2.9621]
[1730475276607,22.68403789,168.92,168.8,9.3837]
[1730475277206,2.9612,168.9,168.86,2.9617]
[1730475277515,3.01962266,169.0,168.8,9.3837]
[1730475277516,22.68403789,168.94,168.8,32.06773789]
[1730475277900,2.9612,168.89,168.8,32.06773789]
[1730475278112,22.68403789,168.94,168.8,32.06773789]
[1730475278303,28.12403789,168.98,168.82,22.68403789]
[1730475278509,0.89463851,168.97,168.82,22.68403789]
[1730475278708,22.68403789,168.98,168.85,22.68403789]
[1730475278911,2.9596,168.99,168.93,2.9605]
[1730475279217,22.68403789,169.01,168.88,28.12403789]
[1730475279605,2.9599,168.97,168.94,2.9603]
[1730475280010,22.68403789,169.01,168.89,3.9733]
[1730475280517,22.68403789,168.98,168.89,2.582]
[1730475280722,22.68403789,168.96,168.88,5.44]
[1730475280906,22.68403789,168.96,168.88,8.4012]
[1730475281104,22.68403789,168.96,168.88,5.44]
[1730475281509,22.68403789,168.96,168.83,6.8017]
[1730475283321,2.9605,168.94,168.9,2.9609]
[1730475283514,2.9605,168.94,168.83,6.8017]
[1730475283822,2.9605,168.94,168.9,2.961]
[1730475284023,2.961,168.91,168.83,6.8017]
[1730475284219,22.68403789,168.96,168.83,6.8017]
[1730475284407,22.68403789,168.96,168.88,2.9612]
[1730475284607,2.9608,168.92,168.88,2.9612]
[1730475285109,2.9606,168.93,168.9,2.961]
[1730475285911,22.68403789,168.95,168.87,2.9615]
[1730475286509,2.961,168.91,168.83,8.00258017]
[1730475287924,2.9605,168.93,168.9,2.9609]
[1730475288123,22.68403789,168.98,168.9,2.9609]
[1730475288322,22.68403789,168.98,168.84,1.48088017]
[1730475288532,2.9604,168.94,168.84,1.48088017]
[1730475288727,22.68403789,168.98,168.84,1.48088017]
[1730475288924,2.9603,168.95,168.91,2.9607]
[1730475289821,2.9603,168.95,168.85,24.16491806]
[1730475290023,5.16,169.01,168.85,22.68403789]
[1730475290233,22.68403789,169.0,168.95,2.9601]
[1730475290430,22.68403789,169.0,168.87,22.68403789]
[1730475290431,22.68403789,169.0,168.9,5.16]
[1730475290832,2.9595,168.99,168.95,2.96]
[1730475291031,22.68403789,169.03,168.91,2.5684]
[1730475291230,2.9592,169.01,168.92,1.3619]
[1730475291632,22.68403789,169.03,168.92,1.3619]
[1730475291840,2.9597,168.98,168.95,2.9601]
[1730475292252,2.9595,168.99,168.92,1.3619]
[1730475292448,2.9595,168.99,168.96,2.9599]
[1730475292750,22.68403789,169.03,168.92,1.3619]
[1730475292958,2.9595,168.99,168.96,2.9599]
[1730475293355,22.68403789,169.01,168.91,2.5684]
[1730475294353,22.68403789,169.03,168.91,2.5684]
[1730475294854,2.9595,168.99,168.96,2.9599]
[1730475295261,22.68403789,169.03,168.91,2.5684]
[1730475295664,22.68403789,169.06,168.93,22.68403789]
[1730475296153,22.68403789,169.09,168.93,22.68403789]
[1730475296652,2.9586,169.05,168.97,2.9597]
[1730475296858,2.9586,169.05,168.97,5.16]
[1730475297154,22.68403789,169.09,168.97,5.16]
[1730475297357,22.68403789,169.06,168.97,5.16]
[1730475298059,2.959,169.02,168.99,2.9594]
[1730475298250,22.68403789,169.06,168.97,5.16]
[1730475298559,2.959,169.02,168.98,2.9595]
[1730475298763,22.68403789,169.06,168.98,2.9595]
[1730475298955,5.16,169.11,168.97,5.16]
[1730475298956,22.68403789,169.09,168.97,5.16]
[1730475299162,22.68403789,169.12,168.99,22.68403789]
[1730475299752,22.68403789,169.12,169.03,2.9586]
[1730475299753,2.9582,169.07,169.03,2.9586]
[1730475299960,22.68403789,169.12,168.99,25.38173789]
[1730475300166,2.9585,169.05,169.01,2.959]
[1730475300769,2.9585,169.05,168.86,8.8852]
[1730475300770,22.68403789,169.06,168.91,27.56403789]
[1730475300976,22.68403789,169.01,168.87,1.3527]
[1730475301266,22.68403789,168.96,168.87,1.3527]
[1730475301665,22.68403789,168.96,168.86,6.225]
[1730475301859,22.68403789,168.96,168.86,4.88]
[1730475301860,2.9613,168.89,168.86,4.88]
[1730475302251,22.68403789,168.96,168.86,4.88]
[1730475303670,2.9605,168.93,168.87,2.9615]
[1730475303969,22.68403789,168.96,168.86,4.88]
[1730475304266,22.68403789,168.96,168.82,22.68403789]
[1730475304267,2.9618,168.86,168.82,2.9624]
[1730475304563,22.68403789,168.91,168.8,4.88]
[1730475304766,2.9611,168.9,168.85,2.9618]
[1730475304959,22.68403789,168.93,168.8,29.04519717]
[1730475305154,22.68403789,168.91,168.8,4.88]
[1730475305855,22.68403789,168.93,168.8,4.88]
[1730475306269,4.88,168.94,168.8,4.88]
[1730475306270,22.68403789,168.91,168.8,4.88]
[1730475306671,2.9615,168.88,168.8,4.88]
[1730475308071,22.68403789,168.91,168.8,4.88]
[1730475308273,2.9614,168.88,168.83,2.9621]
[1730475308569,2.9614,168.88,168.8,4.88]
[1730475308875,2.9609,168.91,168.87,2.9615]
[1730475309067,22.68403789,168.93,168.8,27.56403789]
[1730475309458,2.9607,168.92,168.83,2.9621]
[1730475309662,22.68403789,168.93,168.8,27.56403789]
[1730475310575,2.9609,168.91,168.8,27.56403789]
[1730475310764,22.68403789,168.93,168.8,29.04516427]
[1730475311069,2.9612,168.89,168.85,2.9618]
[1730475311468,22.68403789,168.93,168.8,29.04516427]
[1730475312062,22.68403789,168.93,168.8,27.56403789]
[1730475312263,2.9608,168.91,168.87,2.9615]
[1730475312458,22.68403789,168.96,168.82,22.68403789]
[1730475312773,2.9608,168.92,168.88,2.9612]
[1730475312968,22.68403789,168.98,168.86,4.88]
[1730475313177,22.68403789,169.01,168.87,2.6431]
[1730475313367,2.9599,168.97,168.93,2.9604]
[1730475313565,22.68403789,169.01,168.87,2.6431]
[1730475314076,2.9603,168.95,168.87,2.6431]
[1730475314676,2.9603,168.95,168.91,2.9607]
[1730475314972,34.00063123,169.03,168.87,2.6431]
[1730475314973,2.9607,168.93,168.87,2.6431]
[1730475315374,22.68403789,168.98,168.87,2.6431]
[1730475315875,22.68403789,168.98,168.87,5.6045]
[1730475316073,22.68403789,168.95,168.79,22.68403789]
[1730475316283,2.9611,168.9,168.84,2.962]
[1730475316471,2.9611,168.9,168.8,7.5101]
[1730475316472,22.68403789,168.93,168.8,7.5101]
[1730475316672,22.68403789,168.9,168.8,7.5101]
[1730475316874,2.9618,168.86,168.82,2.9623]
[1730475317471,22.68403789,168.9,168.82,2.9623]
[1730475318081,22.68403789,168.9,168.8,7.5101]
[1730475318082,22.68403789,168.9,168.81,2.9625]
[1730475318470,2.962,168.85,168.82,2.9624]
[1730475319479,2.9617,168.87,168.83,2.9622]
[1730475319779,22.68403789,168.93,168.8,2.6301]
[1730475320078,2.9612,168.89,168.85,2.9618]
[1730475320281,2.9612,168.89,168.8,2.6301]
[1730475321283,2.9612,168.89,168.85,2.9618]
[1730475321777,2.9615,168.88,168.8,2.6301]
[1730475322386,2.9615,168.88,168.84,2.962]
[1730475322589,2.9615,168.88,168.8,2.6301]
[1730475322885,2.9615,168.88,168.8,25.31413789]
[1730475323577,2.9616,168.87,168.83,2.9622]
[1730475323883,2.9616,168.87,168.8,25.31413789]
[1730475324077,22.68403789,168.91,168.8,25.31413789]
[1730475324279,2.9615,168.88,168.84,2.962]
[1730475324882,22.68403789,168.98,168.84,4.88]
[1730475325384,22.68403789,168.98,168.84,6.1578]
[1730475325583,2.9609,168.91,168.84,6.1578]
[1730475326078,2.961,168.9,168.86,2.9616]
[1730475326276,22.68403789,168.91,168.84,4.88]
[1730475326987,2.9615,168.88,168.84,4.88]
[1730475328081,2.9615,168.88,168.84,7.842]
[1730475328590,2.9617,168.87,168.84,4.88]
[1730475328780,22.68403789,168.91,168.84,4.88]
[1730475329173,2.9614,168.88,168.84,7.842]
[1730475329782,2.9614,168.88,168.85,2.9619]
[1730475329990,2.9612,168.89,168.84,4.88]
[1730475331386,2.9612,168.89,168.86,2.9616]
[1730475332985,22.68403789,168.98,168.84,4.88]
[1730475333492,2.9606,168.93,168.9,2.9609]
[1730475333687,22.68403789,168.98,168.84,6.1567]
[1730475333894,22.68403789,168.95,168.84,6.1567]
[1730475334194,2.9613,168.89,168.86,2.9616]
[1730475334491,22.68403789,168.93,168.84,4.88]
[1730475334698,2.961,168.91,168.88,2.9613]
[1730475334887,22.68403789,168.95,168.84,4.88]
[1730475335079,2.9603,168.95,168.92,2.9605]
[1730475335396,22.68403789,168.98,168.85,24.16488477]
[1730475335589,22.68403789,168.98,168.86,1.48083048]
[1730475335795,2.96,168.96,168.92,2.9605]
[1730475335998,2.96,168.96,168.87,1.366]
[1730475336391,22.68403789,169.01,168.88,24.02503789]
[1730475336689,22.68403789,169.01,168.88,25.50579555]
[1730475336884,4.64,169.04,168.9,2.961]
[1730475336885,22.68403789,168.98,168.9,2.961]
[1730475337100,22.68403789,168.98,168.88,1.341]
[1730475337895,2.9602,168.95,168.92,2.9607]
[1730475338196,22.68403789,168.98,168.88,1.341]
[1730475338698,2.9604,168.94,168.91,2.9608]
[1730475339087,2.9605,168.93,168.9,2.961]
[1730475339488,22.68403789,168.96,168.87,1.366]
[1730475339697,22.68403789,168.96,168.86,1.48083423]
[1730475339888,22.68403789,168.96,168.85,4.62]
[1730475340398,2.9612,168.89,168.87,2.9615]
[1730475340690,2.9612,168.89,168.8,22.68403789]
[1730475340691,22.68403789,168.9,168.81,1.48123813]
[1730475340896,22.68403789,168.9,168.79,5.8853]
[1730475341088,22.68403789,168.87,168.8,1.48125847]
[1730475341287,22.68403789,168.84,168.76,1.48142054]
[1730475341491,2.9624,168.82,168.78,2.9631]
[1730475341700,22.68403789,168.84,168.78,2.9631]
[1730475341996,2.9628,168.8,168.77,2.9633]
[1730475342192,22.68403789,168.84,168.77,2.9633]
[1730475342395,22.68403789,168.84,168.75,2.6282]
[1730475342581,22.68403789,168.84,168.76,1.48166668]
[1730475342786,22.68403789,168.84,168.75,2.6282]
[1730475342787,2.9626,168.82,168.78,2.963]
[1730475342980,22.68403789,168.84,168.76,1.4816445]
[1730475343394,2.9624,168.82,168.75,2.6282]
[1730475343588,2.9624,168.82,168.76,1.48164585]
[1730475343789,2.9624,168.82,168.75,2.6282]
[1730475343992,2.9624,168.82,168.55,80.48481067]
[1730475343993,22.68403789,168.82,168.76,1.48164485]
[1730475344193,22.68403789,168.82,168.62,18.85359777]
[1730475344194,22.68403789,168.82,168.68,1.3661]
[1730475344401,22.68403789,168.78,168.68,1.3661]
[1730475344590,2.9643,168.72,168.69,1.48206925]
[1730475344792,4.64,168.87,168.69,24.16610714]
[1730475345095,0.89536908,168.86,168.74,22.68403789]
[1730475345400,22.68403789,168.87,168.75,1.369]
[1730475345589,22.68403789,168.87,168.76,1.2889]
[1730475345790,22.68403789,168.87,168.79,2.9629]
[1730475346391,2.9622,168.84,168.79,2.9629]
[1730475347393,2.9622,168.84,168.8,2.9628]
[1730475347587,2.9622,168.84,168.76,1.2889]
[1730475347588,22.68403789,168.87,168.76,1.2889]
[1730475347808,22.68403789,168.9,168.76,1.2889]
[1730475348012,22.68403789,168.9,168.81,2.9625]
[1730475348807,22.68403789,168.88,168.79,2.9628]
[1730475349009,4.64,168.91,168.76,1.2889]
[1730475349010,22.68403789,168.9,168.76,1.2889]
[1730475349204,22.68403789,168.9,168.77,22.68403789]
[1730475349403,22.68403789,168.9,168.77,24.1661936]
[1730475349612,22.68403789,168.95,168.8,22.68403789]
[1730475349797,22.68403789,168.95,168.76,2.77105571]
[1730475349798,22.68403789,168.95,168.83,22.68403789]
[1730475350110,2.9612,168.9,168.86,2.9617]
[1730475350407,22.68403789,168.93,168.81,4.64]
[1730475350711,22.68403789,168.9,168.81,4.64]
[1730475351702,22.68403789,168.9,168.79,2.6649]
[1730475353311,22.68403789,168.9,168.81,2.9625]
[1730475353706,2.9616,168.87,168.83,2.9622]
[1730475353997,4.64,168.94,168.8,22.68403789]
[1730475354193,22.68403789,168.93,168.8,22.68403789]
[1730475354396,4.64,168.94,168.79,2.6649]
[1730475354397,22.68403789,168.9,168.79,2.6649]
[1730475354910,2.9619,168.85,168.81,2.9625]
[1730475355310,22.68403789,168.9,168.79,2.6649]
[1730475355900,22.68403789,168.9,168.81,2.9625]
[1730475355901,2.962,168.85,168.81,2.9625]
[1730475357312,5.92,168.96,168.81,14.21928481]
[1730475357313,14.21928481,168.91,168.81,14.21928481]
[1730475357510,14.21928481,168.94,168.81,14.21928481]
[1730475357802,14.21928481,168.94,168.86,2.9616]
[1730475357803,2.9612,168.9,168.86,2.9616]
[1730475358003,18.85928481,168.97,168.82,1.2917]
[1730475358194,14.21928481,168.87,168.77,14.21928481]
[1730475358400,14.21928481,168.87,168.75,5.8971]
[1730475358900,2.9622,168.84,168.79,2.9628]
[1730475359108,14.21928481,168.87,168.79,2.9628]
[1730475359502,14.21928481,168.84,168.77,2.9632]
[1730475359905,14.21928481,168.84,168.75,1.2571]
[1730475360501,14.21928481,168.82,168.75,1.2571]
[1730475361202,2.9628,168.8,168.76,2.9634]
[1730475361404,2.9628,168.8,168.75,1.2571]
[1730475362311,2.9628,168.8,168.77,2.9633]
[1730475362512,2.9628,168.8,168.75,1.2571]
[1730475362717,14.21928481,168.8,168.73,1.3383]
[1730475362919,4.54,168.85,168.7,4.44623305]
[1730475362920,14.21928481,168.78,168.7,4.44623305]
[1730475363124,14.21928481,168.78,168.7,2.9644]
[1730475363709,2.9638,168.75,168.71,2.9643]
[1730475364512,14.21928481,168.78,168.7,2.9644]
[1730475364814,14.21928481,168.75,168.68,7.2493]
[1730475365111,14.21928481,168.75,168.65,1.48213205]
[1730475365112,2.9646,168.7,168.65,1.48213205]
[1730475365309,14.21928481,168.73,168.64,2.74903205]
[1730475365508,14.21928481,168.73,168.64,7.28903205]
[1730475365718,2.9646,168.7,168.66,2.9652]
[1730475366114,14.21928481,168.73,168.64,2.74903205]
[1730475366317,14.21928481,168.73,168.64,1.2669]
[1730475366512,14.21928481,168.71,168.63,1.48239486]
[1730475366721,14.21928481,168.69,168.64,1.48239486]
[1730475367110,14.21928481,168.69,168.58,15.70167967]
[1730475367420,18.75928481,168.72,168.64,2.9655]
[1730475367620,14.21928481,168.66,168.55,1.48239486]
[1730475367915,14.21928481,168.63,168.55,1.3683]
[1730475368120,14.21928481,168.63,168.58,2.9666]
[1730475368718,2.9657,168.64,168.59,2.9664]
[1730475369120,22.79143113,168.66,168.55,1.3683]
[1730475369319,22.79143113,168.69,168.56,4.54]
[1730475369515,22.79143113,168.66,168.56,4.54]
[1730475369716,22.79143113,168.66,168.6,2.9662]
[1730475369717,2.9654,168.65,168.6,2.9662]
[1730475370724,2.9654,168.65,168.56,4.54]
[1730475370926,22.79143113,168.66,168.56,4.54]
[1730475371441,22.79143113,168.71,168.57,22.79143113]
[1730475371626,2.9648,168.69,168.57,22.79143113]
[1730475371931,2.96074326,168.79,168.56,4.54]
[1730475371932,22.79143113,168.74,168.6,22.79143113]
[1730475372241,230.0,168.87,168.63,22.79143113]
[1730475372242,27.33143113,168.77,168.63,22.79143113]
[1730475372534,22.79143113,168.77,168.64,8.415]
[1730475372733,2.9637,168.75,168.64,8.415]
[1730475372928,22.79143113,168.77,168.7,2.9645]
[1730475373239,22.79143113,168.79,168.65,22.79143113]
[1730475373425,5.9234,168.87,168.68,2.9648]
[1730475373426,22.79143113,168.77,168.68,2.9648]
[1730475373621,22.79143113,168.77,168.64,8.415]
[1730475373923,22.79143113,168.74,168.64,3.875]
[1730475374325,22.79143113,168.71,168.64,1.3013]
[1730475374924,2.9649,168.68,168.64,1.3013]
[1730475375141,22.79143113,168.71,168.62,2.9658]
[1730475375533,2.9652,168.66,168.62,2.9658]
[1730475375730,22.79143113,168.71,168.63,2.9658]
[1730475375926,22.79143113,168.68,168.57,5.9243]
[1730475376133,2.9656,168.64,168.57,5.9243]
[1730475376335,2.9656,168.64,168.6,2.9661]
[1730475376732,2.9656,168.64,168.57,5.9243]
[1730475377333,22.79143113,168.68,168.56,1.3455]
[1730475377731,22.79143113,168.66,168.56,1.3455]
[1730475378242,22.79143113,168.77,168.35,18.88027464]
[1730475378243,22.79143113,168.61,168.48,22.79143113]
[1730475378436,22.79143113,168.61,168.49,7.1396]
[1730475379640,22.79143113,168.63,168.49,7.1396]
[1730475379944,22.79143113,168.69,168.55,22.79143113]
[1730475380141,22.79143113,168.69,168.56,5.8779]
[1730475380545,29.17517441,168.71,168.58,22.79143113]
[1730475380740,22.79143113,168.72,168.59,1.3259]
[1730475381135,22.79143113,168.72,168.67,2.965]
[1730475381136,2.9644,168.71,168.67,2.965]
[1730475381336,2.9644,168.71,168.62,4.82]
[1730475382042,2.9643,168.72,168.62,4.82]
[1730475383232,2.9639,168.74,168.7,2.9645]
[1730475383432,22.79143113,168.77,168.65,2.5928]
[1730475384038,2.9637,168.75,168.71,2.9642]
[1730475384437,2.9638,168.75,168.68,4.82]
[1730475384638,22.79143113,168.77,168.65,2.5928]
[1730475384837,22.79143113,168.74,168.66,4.82]
[1730475385248,2.9642,168.72,168.68,2.9647]
[1730475385444,2.9642,168.72,168.66,4.82]
[1730475385445,22.79143113,168.74,168.66,4.82]
[1730475386338,2.9645,168.7,168.66,7.7851]
[1730475386534,22.79143113,168.74,168.66,4.82]
[1730475386931,2.9642,168.73,168.66,4.82]
[1730475387542,22.79143113,168.74,168.68,2.9647]
[1730475387738,22.79143113,168.74,168.66,4.82]
[1730475387937,22.79143113,168.77,168.66,4.82]
[1730475388146,2.9639,168.74,168.66,4.82]
[1730475388345,22.79143113,168.77,168.66,4.82]
[1730475388538,2.9635,168.77,168.73,2.964]
[1730475388739,22.79143113,168.8,168.73,2.964]
[1730475389042,22.79143113,168.8,168.7,2.9645]
[1730475389043,2.9637,168.75,168.7,2.9645]
[1730475389248,22.79143113,168.8,168.66,4.82]
[1730475389548,2.9636,168.76,168.67,22.79143113]
[1730475389741,2.9636,168.76,168.73,2.9639]
[1730475389942,22.79143113,168.8,168.67,22.79143113]
[1730475390246,2.9632,168.78,168.75,2.9636]
[1730475390444,27.61143113,168.82,168.66,4.82]
[1730475390445,22.79143113,168.82,168.7,22.79143113]
[1730475390643,2.9626,168.82,168.7,22.79143113]
[1730475390847,22.79143113,168.85,168.72,22.79143113]
[1730475391144,22.79143113,168.85,168.73,7.7899]
[1730475391333,2.9625,168.82,168.78,2.963]
[1730475391538,2.9625,168.82,168.73,7.7899]
[1730475391741,2.9629,168.8,168.76,2.9634]
[1730475392147,22.79143113,168.79,168.7,5.1]
[1730475392844,2.9633,168.77,168.73,2.9639]
[1730475393036,2.9633,168.77,168.7,5.1]
[1730475393037,22.79143113,168.79,168.7,5.1]
[1730475393439,2.9633,168.77,168.73,2.9639]
[1730475393752,2.9633,168.77,168.7,5.1]
[1730475393753,22.79143113,168.79,168.7,5.1]
[1730475393948,22.79143113,168.79,168.68,6.4114]
[1730475394250,22.79143113,168.79,168.71,2.9642]
[1730475394648,2.9637,168.75,168.71,2.9642]
[1730475394949,2.9637,168.75,168.72,2.9642]
[1730475395837,2.9635,168.76,168.72,2.9642]
[1730475396548,2.9632,168.78,168.68,6.4114]
[1730475396854,22.79143113,168.79,168.68,5.1]
[1730475397047,2.9637,168.75,168.71,2.9643]
[1730475397352,22.79143113,168.79,168.68,5.1]
[1730475397751,2.9638,168.75,168.71,2.9642]
[1730475398452,2.9639,168.74,168.71,2.9642]
[1730475398654,22.79143113,168.79,168.68,5.1]
[1730475398847,22.79143113,168.79,168.72,2.9641]
[1730475399152,22.79143113,168.79,168.67,5.1]
[1730475399460,22.79143113,168.77,168.67,5.1]
[1730475399648,2.9641,168.73,168.67,5.1]
[1730475399849,2.9641,168.73,168.66,1.2815]
[1730475400051,2.9641,168.73,168.69,2.9646]
[1730475400244,22.79143113,168.77,168.66,6.3815]
[1730475400443,22.79143113,168.77,168.68,2.9649]
[1730475400841,2.9643,168.72,168.68,2.9649]
[1730475401155,22.79143113,168.74,168.66,1.2815]
[1730475401652,2.9645,168.71,168.67,2.965]
[1730475401854,22.79143113,168.74,168.66,1.2815]
[1730475402449,22.79143113,168.74,168.66,2.9651]
[1730475402450,2.9646,168.7,168.66,2.9651]
[1730475402652,22.79143113,168.74,168.66,2.9651]
[1730475402951,22.79143113,168.74,168.63,5.1]
[1730475403158,2.9656,168.65,168.62,2.9658]
[1730475403355,22.79143113,168.69,168.5,5.9361]
[1730475403658,2.9663,168.61,168.57,2.9667]
[1730475403955,2.9663,168.61,168.54,5.1]
[1730475404348,2.966,168.62,168.58,2.9665]
[1730475405459,2.9653,168.66,168.63,2.9657]
[1730475405650,22.79143113,168.69,168.55,5.1]
[1730475405956,2.9659,168.63,168.59,2.9663]
[1730475406255,22.79143113,168.66,168.55,5.1]
[1730475406450,2.9661,168.62,168.56,2.9668]
[1730475406654,2.9661,168.62,168.55,5.1]
[1730475407151,2.9658,168.63,168.55,5.1]
[1730475407353,22.79143113,168.69,168.55,5.1]
[1730475407657,22.79143113,168.72,168.64,2.9655]
[1730475408462,2.9647,168.7,168.66,2.9651]
[1730475408760,22.79143113,168.72,168.6,1.3357]
[1730475408951,22.79143113,168.74,168.61,22.79143113]